bitfinex/quotes_ETHUSD_20250403
["timestamp","ask_amount","ask_price","bid_price","bid_amount"]
[1743700471713,6.01,1775.2,1775.1,5.63339]
[1743700473232,6.01,1775.2,1775.0,11.26742]
[1743700473430,6.01,1775.2,1775.1,5.63348]
[1743700474897,6.01,1775.2,1775.1,6.760193]
[1743700475103,6.01,1775.2,1775.1,7.568893]
[1743700475699,6.01,1775.2,1775.1,7.74499923]
[1743700477031,6.01,1775.2,1775.1,8.1633504]
[1743700477255,6.01,1775.5,1775.3,5.63283]
[1743700477896,6.41604,1775.4,1775.1,6.05163117]
[1743700478128,6.41603,1775.4,1775.1,6.05163117]
[1743700480336,8.78407653,1775.4,1775.3,0.59790727]
[1743700480830,17.79407653,1775.4,1775.3,0.59790727]
[1743700482446,17.79407653,1775.4,1775.3,0.421782]
[1743700485729,17.79407653,1775.4,1775.3,0.59790414]
[1743700486129,17.79407653,1775.4,1775.3,0.70323558]
[1743700493560,15.42598,1775.4,1775.3,0.70323558]
[1743700495261,6.01,1775.4,1775.3,6.33608558]
[1743700495439,6.01,1775.4,1775.3,7.13308558]
[1743700495628,6.01,1775.4,1775.3,1.50023558]
[1743700495828,6.01,1775.4,1775.3,0.70323558]
[1743700496927,0.7644,1775.5,1775.3,0.70323558]
[1743700497126,6.39664,1775.5,1775.3,0.70323558]
[1743700497631,9.39664,1775.5,1775.4,0.17612214]
[1743700497835,11.33767613,1775.5,1775.4,0.2836822]
[1743700498869,11.33767613,1775.5,1775.4,0.7054642]
[1743700499258,3.7644,1775.5,1775.4,0.7054642]
[1743700499644,3.0,1775.5,1775.4,0.7054642]
[1743700500360,33.28927339,1775.5,1775.4,0.7054642]
[1743700500537,11.70485239,1775.5,1775.4,0.59790414]
[1743700500737,11.70485239,1775.5,1775.4,0.70444516]
[1743700501038,13.87670976,1775.5,1775.4,0.52832302]
[1743700501256,13.87670976,1775.5,1775.4,0.10654102]
[1743700501437,8.63264,1775.4,1775.1,0.17612214]
[1743700501746,5.66200239,1775.3,1775.2,0.10654102]
[1743700502680,0.02914239,1775.3,1775.0,0.421782]
[1743700502857,5.66199239,1775.3,1775.2,0.52832302]
[1743700503177,7.52963076,1775.3,1775.2,0.52832302]
[1743700503773,7.52963076,1775.3,1775.2,0.70445014]
[1743700504268,25.17043276,1775.3,1775.2,0.70445014]
[1743700504471,8.28873076,1775.3,1775.2,0.70445014]
[1743700504676,8.28873076,1775.3,1775.2,0.59790912]
[1743700504876,8.71736378,1775.3,1775.2,0.7056603]
[1743700505242,10.72999878,1775.3,1775.2,0.52953318]
[1743700505444,13.72999878,1775.3,1775.2,0.421782]
[1743700505751,11.71736378,1775.3,1775.2,0.52953318]
[1743700505948,5.63368,1775.1,1774.7,12.06276]
[1743700506170,10.01544126,1775.1,1774.8,0.10775118]
[1743700506378,6.41052,1774.9,1774.8,0.10775118]
[1743700506562,6.41052,1774.9,1774.6,5.63503]
[1743700506762,6.41052,1774.9,1774.5,6.46723]
[1743700506763,16.45569365,1774.9,1774.7,0.10838822]
[1743700507085,5.63495,1774.7,1774.3,6.46781]
[1743700507285,11.26908,1774.8,1774.4,6.282321]
[1743700507486,11.26908,1774.8,1774.3,6.46785]
[1743700507487,6.47178239,1774.6,1774.2,11.27258]
[1743700507687,10.01727126,1774.5,1774.1,6.45269]
[1743700507875,10.01727126,1774.5,1774.2,5.63631]
[1743700508060,0.02914239,1774.4,1774.2,5.63631]
[1743700508387,0.4458114,1774.4,1774.2,5.63617]
[1743700508596,0.02914239,1774.4,1774.3,5.63602]
[1743700509564,0.02914239,1774.4,1774.3,6.42792]
[1743700510062,0.02914239,1774.4,1774.3,6.48427578]
[1743700510275,0.02914239,1774.4,1774.3,6.42792]
[1743700510474,0.02914239,1774.4,1774.3,6.97792]
[1743700510654,0.02914239,1774.4,1774.3,8.92381526]
[1743700510864,5.16246126,1775.2,1774.9,5.63393]
[1743700511188,3.7807,1775.3,1775.0,11.26739]
[1743700511612,0.7807,1775.3,1774.9,0.7699]
[1743700511791,4.38176126,1775.4,1775.1,5.63321]
[1743700512092,10.01430126,1775.4,1775.1,5.63321]
[1743700512481,4.38176126,1775.4,1775.2,5.6331]
[1743700512794,10.01440126,1775.4,1775.1,5.63321]
[1743700512987,15.64719126,1775.4,1775.0,5.63378]
[1743700513191,10.44732279,1775.4,1775.1,5.63347]
[1743700513398,10.44732279,1775.4,1775.0,6.837422]
[1743700513399,10.44732279,1775.4,1775.0,12.471062]
[1743700513993,5.16096126,1775.6,1775.4,5.63239]
[1743700514166,0.8145,1775.8,1775.5,5.63206]
[1743700514360,0.8145,1775.8,1775.5,11.2641]
[1743700514555,1.24729472,1775.8,1775.5,11.2641]
[1743700515087,4.24729472,1775.8,1775.5,5.63204]
[1743700515455,5.63191,1775.6,1775.3,5.63278]
[1743700515987,5.63193,1775.6,1775.2,6.43997]
[1743700516193,10.01413126,1775.5,1775.1,5.63325]
[1743700516393,8.63262,1775.4,1775.1,5.63325]
[1743700516563,10.49729513,1775.4,1775.1,5.63325]
[1743700516767,10.49729513,1775.4,1775.0,12.03457]
[1743700516978,16.13000513,1775.4,1775.0,6.40083]
[1743700517295,16.13000513,1775.4,1775.0,5.63363]
[1743700517665,5.63322,1775.2,1774.8,5.63432]
[1743700517882,10.57880326,1775.1,1774.7,11.2693]
[1743700518088,3.0,1775.0,1774.7,5.63461]
[1743700518396,9.45304,1775.0,1774.7,5.63461]
[1743700518775,4.25229061,1775.0,1774.7,5.63461]
[1743700519892,9.88622061,1775.0,1774.6,5.63507]
[1743700520066,0.98862206,1774.9,1774.6,5.63507]
[1743700520263,11.00465332,1774.9,1774.5,5.63535]
[1743700520519,8.63509,1774.6,1774.3,5.63601]
[1743700520669,3.0,1774.6,1774.5,5.63539]
[1743700521017,3.0,1774.6,1774.4,5.63561]
[1743700521938,8.63509,1774.6,1774.3,5.63602]
[1743700522118,3.0,1774.6,1774.4,5.63568]
[1743700522318,3.0,1774.6,1774.4,11.27128]
[1743700522525,3.0,1774.6,1774.5,5.63539]
[1743700522839,6.40729,1774.8,1774.4,5.6356]
[1743700522840,15.04206,1774.8,1774.4,5.63557]
[1743700523036,17.64944433,1774.8,1774.4,5.63555]
[1743700523443,12.01479433,1774.8,1774.5,5.63526]
[1743700523618,6.38024433,1774.8,1774.5,11.27051]
[1743700523810,9.40728,1774.8,1774.5,11.27052]
[1743700524042,3.7728,1774.8,1774.5,11.27052]
[1743700524458,3.7728,1774.8,1774.5,6.45635]
[1743700524763,15.04211,1774.8,1774.4,5.63565]
[1743700525124,15.04202,1774.8,1774.4,11.2712]
[1743700525319,3.0,1774.6,1774.3,5.63597]
[1743700525541,3.0,1774.7,1774.5,5.63527]
[1743700526548,3.0,1774.7,1774.4,11.27107]
[1743700526927,3.0,1774.7,1774.4,5.63549]
[1743700527654,3.0,1774.7,1774.4,11.27105]
[1743700527830,3.0,1774.8,1774.4,1.206865]
[1743700528026,1.25199061,1775.0,1774.7,5.63475]
[1743700528227,4.25199061,1775.0,1774.7,11.26927]
[1743700528427,4.25199061,1775.0,1774.7,5.63462]
[1743700529723,4.25199061,1775.0,1774.6,0.7994]
[1743700529930,10.01651126,1774.7,1774.3,6.4488]
[1743700530259,11.2705,1774.6,1774.2,11.27262]
[1743700530573,0.7881,1774.5,1774.2,11.27254]
[1743700530925,10.80462126,1774.7,1774.4,5.6357]
[1743700531123,3.7881,1774.7,1774.4,11.2713]
[1743700531328,3.7881,1774.7,1774.4,6.4484]
[1743700531581,3.7881,1774.7,1774.4,12.08395]
[1743700531858,5.63508,1774.6,1774.3,5.63597]
[1743700532231,9.42317,1774.7,1774.2,0.8311]
[1743700532433,3.0,1774.7,1774.5,5.63535]
[1743700532637,3.0,1774.7,1774.5,5.63526]
[1743700532850,6.39867,1774.9,1774.3,5.63593]
[1743700533078,6.39867,1774.9,1774.6,5.63488]
[1743700533277,5.63469,1774.8,1774.4,5.63557]
[1743700533437,6.71278513,1774.8,1774.4,5.63557]
[1743700533643,5.6348,1774.7,1774.3,5.63591]
[1743700533843,5.6348,1774.7,1774.4,5.6356]
[1743700534163,11.26974,1774.7,1774.4,5.6356]
[1743700534369,5.6348,1774.7,1774.4,5.6356]
[1743700534566,5.63512,1774.6,1774.3,5.6359]
[1743700534955,11.27036,1774.6,1774.2,11.2726]
[1743700535150,5.63545,1774.5,1774.2,5.6363]
[1743700535483,5.63545,1774.5,1774.2,11.2725]
[1743700535690,5.63545,1774.5,1774.2,5.6362]
[1743700535984,0.7567,1774.4,1774.1,0.05]
[1743700536342,6.39241,1774.4,1774.1,5.68654]
[1743700536542,5.63604,1774.3,1774.1,0.05]
[1743700536971,0.7567,1774.4,1774.1,0.05]
[1743700537184,6.39241,1774.4,1774.1,5.68653]
[1743700537396,6.39241,1774.4,1774.1,0.05]
[1743700537690,5.63615,1774.3,1774.1,0.05]
[1743700538983,0.7631,1774.2,1774.1,0.05]
[1743700539141,6.39944,1774.2,1774.1,0.05]
[1743700539577,0.7631,1774.2,1774.1,0.05]
[1743700543564,5.13896126,1774.3,1774.1,0.05]
[1743700543887,3.7572,1774.3,1774.1,0.05]
[1743700544093,3.7572,1774.3,1774.1,5.68653]
[1743700544094,3.0,1774.3,1774.1,5.68653]
[1743700546175,3.0,1774.3,1774.2,5.63634]
[1743700547108,3.0,1774.3,1774.2,5.74305031]
[1743700547308,0.7781,1774.6,1774.2,1.24966834]
[1743700547460,6.41317,1774.6,1774.3,11.27194]
[1743700547660,3.7781,1774.6,1774.3,0.11231491]
[1743700547863,3.0,1774.6,1774.4,5.63548]
[1743700548077,8.63508,1774.6,1774.4,0.11231491]
[1743700548372,8.63508,1774.6,1774.5,0.11231491]
[1743700548373,3.0,1774.6,1774.5,0.11231491]
[1743700548577,3.0,1774.6,1774.3,11.27187]
[1743700548777,3.0,1774.6,1774.4,0.11231491]
[1743700549116,3.0,1774.6,1774.3,11.27187]
[1743700549414,0.7909,1774.9,1774.4,0.7911]
[1743700549567,10.80636126,1775.1,1774.7,6.42554]
[1743700549769,5.63381,1775.0,1774.7,5.63444]
[1743700550000,5.63381,1775.0,1774.8,0.11091324]
[1743700550162,3.0,1775.0,1774.8,0.11091324]
[1743700550771,3.0,1775.0,1774.8,5.74522324]
[1743700551397,3.0,1775.0,1774.8,6.88318956]
[1743700551791,6.04756033,1775.0,1774.8,0.11091324]
[1743700551964,0.41356033,1775.0,1774.8,0.11091324]
[1743700552164,16.43984126,1775.1,1774.8,0.11091324]
[1743700552561,0.415769,1774.9,1774.8,5.74526324]
[1743700552900,0.415769,1774.9,1774.8,0.11091324]
[1743700553393,1.205869,1774.9,1774.8,0.11091324]
[1743700555204,1.205869,1774.9,1774.6,5.63494]
[1743700555521,0.7901,1774.9,1774.7,5.7433977]
[1743700556399,0.7901,1774.9,1774.7,11.3780077]
[1743700556780,0.7901,1774.9,1774.7,5.7433577]
[1743700557900,0.7901,1774.9,1774.7,0.1087477]
[1743700558289,0.7901,1774.9,1774.7,5.7434877]
[1743700559503,0.7901,1774.9,1774.7,5.7433777]
[1743700559724,0.43035144,1775.0,1774.8,5.63443]
[1743700560009,3.8263,1775.2,1774.9,5.73951893]
[1743700560177,3.0,1775.3,1775.0,0.8315]
[1743700560378,0.02914477,1775.1,1774.9,5.63399]
[1743700560585,0.8263,1775.0,1774.8,5.63432]
[1743700560800,0.8263,1775.0,1774.7,6.77249577]
[1743700561021,0.02914477,1774.9,1774.7,1.13784577]
[1743700561327,0.46060782,1774.9,1774.6,6.46632]
[1743700561508,0.46060782,1774.9,1774.7,5.63473]
[1743700561673,0.46060782,1774.9,1774.8,5.63443]
[1743700561874,0.46060782,1774.9,1774.7,5.63463]
[1743700562318,0.46060782,1774.9,1774.6,5.63491]
[1743700562472,0.46060782,1774.9,1774.7,5.63471]
[1743700562672,0.46060782,1774.9,1774.7,5.63459]
[1743700564225,0.02914477,1774.9,1774.8,6.46433]
[1743700565681,0.02914477,1774.9,1774.8,5.63443]
[1743700567110,5.66330477,1774.9,1774.6,7.100081]
[1743700567285,5.66330477,1774.9,1774.6,6.278481]
[1743700567609,5.66330477,1774.9,1774.6,6.278391]
[1743700567812,5.66330477,1774.9,1774.6,5.63504]
[1743700568144,0.8169,1774.7,1774.3,0.7841]
[1743700568286,0.8169,1774.7,1774.5,5.63511]
[1743700568636,0.02914477,1774.6,1774.5,5.63511]
[1743700569126,0.02914477,1774.6,1774.4,5.63565]
[1743700569485,0.02914477,1774.6,1774.4,5.6357]
[1743700569842,0.02914477,1774.6,1774.5,6.43049]
[1743700570416,0.02914477,1774.6,1774.5,5.63539]
[1743700571886,0.02914477,1774.6,1774.5,5.79296989]
[1743700572089,0.02914477,1774.6,1774.5,0.15757989]
[1743700572314,0.02914477,1774.6,1774.5,5.79296989]
[1743700572789,0.02914477,1774.6,1774.5,0.15757989]
[1743700572991,0.02914477,1774.6,1774.5,5.79296989]
[1743700573329,0.02914477,1774.6,1774.5,5.74229001]
[1743700573508,0.02914477,1774.6,1774.5,0.10690001]
[1743700573820,0.02914477,1774.6,1774.5,5.74229001]
[1743700576228,0.02914477,1774.6,1774.5,6.88007701]
[1743700576920,0.02914477,1774.6,1774.5,7.66097701]
[1743700577123,4.77e-06,1774.6,1774.5,12.04273827]
[1743700577299,0.7875,1775.5,1775.2,5.63316]
[1743700577502,1.20898228,1775.5,1775.3,5.63272]
[1743700577703,4.20898228,1775.5,1775.4,5.63253]
[1743700577899,5.20898228,1775.5,1775.2,5.63315]
[1743700578118,8.20898228,1775.5,1775.4,0.12606391]
[1743700578328,3.42148228,1775.5,1775.3,5.63257]
[1743700578633,3.42148228,1775.5,1775.3,6.195827]
[1743700578817,3.42148228,1775.5,1775.2,11.26618]
[1743700579016,3.42148228,1775.5,1775.3,5.63278]
[1743700579337,0.8117,1775.4,1775.1,11.26669]
[1743700579635,0.8117,1775.4,1775.2,5.63314]
[1743700580736,5.63289,1775.3,1775.0,5.63375]
[1743700580922,0.7621,1775.1,1774.9,11.26816]
[1743700581123,6.39499,1775.3,1775.0,5.6338]
[1743700581637,0.7621,1775.3,1775.1,5.63336]
[1743700581938,14.70877228,1775.5,1775.2,5.63316]
[1743700581939,4.18358228,1775.5,1775.2,5.63316]
[1743700582105,9.81582228,1775.5,1775.2,5.63316]
[1743700582432,3.42148228,1775.5,1775.4,5.63253]
[1743700582633,3.42148228,1775.5,1775.3,11.26548]
[1743700583238,0.8094,1775.7,1775.2,1.892958]
[1743700583422,0.7621,1775.9,1775.7,5.63146]
[1743700583630,0.7621,1775.9,1775.6,5.63189]
[1743700583812,16.82561193,1775.9,1775.5,5.63208]
[1743700584139,16.82561193,1775.9,1775.5,5.63205]
[1743700584306,13.17702312,1775.9,1775.5,5.63205]
[1743700584506,11.19446193,1775.9,1775.5,11.26409]
[1743700584730,6.81270067,1775.9,1775.5,11.26409]
[1743700584933,6.81270067,1775.9,1775.5,5.63204]
[1743700585106,5.63126,1775.8,1775.5,5.63204]
[1743700585503,5.63126,1775.8,1775.3,5.6328]
[1743700585719,5.63232,1775.5,1775.1,5.63343]
[1743700585932,5.63232,1775.5,1775.2,5.63315]
[1743700586133,5.63225,1775.5,1775.1,5.63345]
[1743700586339,6.44504,1775.4,1775.1,5.63345]
[1743700586518,6.44504,1775.4,1775.1,5.63341]
[1743700586717,0.8125,1775.4,1775.1,11.26677]
[1743700586914,6.40701,1775.6,1775.2,11.26595]
[1743700587145,6.40701,1775.6,1775.2,5.63295]
[1743700587437,5.633,1775.3,1774.9,5.63393]
[1743700587625,0.7751,1775.2,1774.9,5.63393]
[1743700587825,6.40829,1775.2,1774.8,11.26867]
[1743700588045,10.01529126,1775.1,1774.7,11.26937]
[1743700588240,4.38176126,1775.1,1774.8,5.6344]
[1743700588465,0.7565,1775.4,1774.9,5.63412]
[1743700588759,15.02012,1775.7,1775.3,5.63263]
[1743700588918,15.02002,1775.7,1775.3,5.63263]
[1743700589117,9.38824,1775.7,1775.2,5.63314]
[1743700589325,11.32841813,1775.7,1775.3,5.63274]
[1743700589641,9.38824,1775.7,1775.3,5.63274]
[1743700589857,0.7565,1775.7,1775.4,5.63237]
[1743700590069,0.7565,1775.7,1775.5,5.6322]
[1743700590362,10.01376126,1775.6,1775.1,5.63346]
[1743700590515,5.63255,1775.4,1775.1,5.63346]
[1743700590715,6.45184,1775.5,1775.1,5.63346]
[1743700590921,12.08433,1775.5,1775.1,5.63346]
[1743700591121,6.45184,1775.5,1775.1,5.63346]
[1743700591349,5.6329,1775.3,1775.0,5.63376]
[1743700591553,3.0,1775.4,1775.1,5.63326]
[1743700591752,3.0,1775.4,1775.1,11.26663]
[1743700591958,8.63255,1775.4,1775.1,5.63326]
[1743700592624,8.63255,1775.4,1775.1,11.26657]
[1743700592954,8.63255,1775.4,1775.1,5.63326]
[1743700593650,8.63255,1775.4,1775.0,5.6337]
[1743700593856,8.63255,1775.4,1775.1,5.63346]
[1743700594153,4.9237525,1775.4,1775.0,5.63375]
[1743700594357,3.4153305,1775.4,1775.0,11.2674]
[1743700594956,3.4153305,1775.4,1775.1,5.63346]
[1743700595160,9.0478705,1775.4,1775.1,5.63346]
[1743700596050,3.4153305,1775.4,1775.1,5.63346]
[1743700596293,0.4153305,1775.4,1775.2,5.63299]
[1743700596627,9.45173,1775.5,1775.2,5.63299]
[1743700596826,10.960098,1775.5,1775.2,5.63299]
[1743700597153,5.63262,1775.4,1775.1,5.63343]
[1743700597528,13.83349126,1775.5,1775.1,11.26676]
[1743700597928,0.8194,1775.5,1775.2,11.26617]
[1743700598665,0.7859,1775.8,1775.2,0.761]
[1743700598860,0.7859,1775.8,1775.6,11.26354]
[1743700599042,0.41963067,1775.9,1775.7,5.63158]
[1743700599245,12.04733,1776.0,1775.7,5.63158]
[1743700599443,3.0,1775.9,1775.7,5.63158]
[1743700599644,6.41653,1776.0,1775.7,5.63158]
[1743700599851,5.63107,1775.9,1775.5,6.45977]
[1743700600056,11.26227,1775.9,1775.5,13.301104]
[1743700600233,11.26227,1775.9,1775.5,5.63207]
[1743700600625,11.26227,1775.9,1775.5,11.26413]
[1743700600831,5.63107,1775.9,1775.5,11.26412]
[1743700601031,11.26227,1775.9,1775.5,5.63206]
[1743700601272,5.63127,1775.8,1775.5,5.63206]
[1743700602047,5.63127,1775.8,1775.3,0.7642]
[1743700602048,0.42627895,1775.8,1775.3,6.39702]
[1743700602249,9.41656,1776.0,1775.6,5.63176]
[1743700602450,3.7859,1776.0,1775.7,11.26301]
[1743700602760,9.41655,1776.0,1775.6,5.63185]
[1743700603151,9.41655,1776.0,1775.5,5.6322]
[1743700603152,3.7859,1776.0,1775.7,5.63142]
[1743700603536,9.4166,1776.0,1775.7,5.63142]
[1743700604168,15.04746,1776.0,1775.6,11.26364]
[1743700604968,9.4166,1776.0,1775.7,5.63157]
[1743700605173,3.7859,1776.0,1775.5,5.63221]
[1743700605358,4.21513658,1776.0,1775.8,5.63107]
[1743700605561,4.21513658,1776.0,1775.7,6.39475]
[1743700605752,4.21513658,1776.0,1775.8,5.63115]
[1743700606275,6.01,1775.9,1775.8,12.46485]
[1743700606565,6.01,1775.9,1775.8,5.63111]
[1743700607169,6.01,1775.9,1775.6,5.63184]
[1743700607339,6.01,1775.9,1775.6,11.26359]
[1743700607761,6.01,1775.9,1775.6,5.63175]
[1743700607937,6.01,1775.9,1775.7,5.63155]
[1743700608140,6.01,1775.9,1775.8,5.63126]
[1743700608542,6.01,1775.9,1775.8,6.39196]
[1743700608790,6.01,1776.2,1776.1,5.63031]
[1743700608976,6.01,1776.2,1776.1,6.39101]
[1743700609480,6.43978718,1776.5,1776.2,5.6299]
[1743700609648,6.43978718,1776.5,1776.2,5.62985]
[1743700609972,6.01,1776.5,1776.1,0.7607]
[1743700610175,6.01,1776.5,1776.4,5.62936]
[1743700612040,6.01,1776.5,1776.3,11.25913]
[1743700612247,6.01,1776.5,1776.4,5.62936]
[1743700612879,6.01,1776.5,1776.3,11.25906]
[1743700613178,6.01,1776.5,1776.4,5.62936]
[1743700613673,6.01,1776.5,1776.2,11.2598]
[1743700613874,6.8214,1776.5,1776.2,5.62984]
[1743700614077,6.8214,1776.5,1776.2,11.25973]
[1743700614381,19.324822,1776.5,1776.1,5.63024]
[1743700614598,11.63945,1776.4,1776.0,5.63055]
[1743700614878,11.63945,1776.4,1775.7,12.03646]
[1743700614879,0.8128,1776.0,1775.7,12.03646]
[1743700615079,6.01,1775.9,1775.7,11.26299]
[1743700615296,6.01,1775.9,1775.8,5.63126]
[1743700615456,6.01,1775.9,1775.6,5.63184]
[1743700615653,12.76152613,1775.9,1775.6,5.63184]
[1743700616469,18.39265613,1775.9,1775.5,11.26424]
[1743700616685,11.26273,1775.8,1775.4,5.6325]
[1743700616856,12.44797,1775.7,1775.3,5.63278]
[1743700617058,6.01,1775.6,1775.3,5.63274]
[1743700617253,11.6419,1775.6,1775.3,5.63274]
[1743700617573,13.8716952,1775.6,1775.1,5.63344]
[1743700617775,5.63239,1775.5,1775.1,5.63344]
[1743700617989,11.26486,1775.5,1775.1,5.63344]
[1743700618153,5.63257,1775.4,1775.1,5.63344]
[1743700618363,6.7999,1775.3,1775.0,11.26739]
[1743700618588,6.7999,1775.3,1775.0,12.471299]
[1743700619103,6.7999,1775.3,1775.0,6.837549]
[1743700619258,6.01,1775.2,1774.9,5.63394]
[1743700619452,11.64321,1775.2,1774.9,5.63394]
[1743700619696,11.6435,1775.1,1774.7,5.63472]
[1743700619863,11.6435,1775.1,1774.5,1.137787]
[1743700619864,6.4587,1775.0,1774.6,5.63503]
[1743700620066,6.01,1774.9,1774.6,12.396961]
[1743700620271,6.01,1774.9,1774.8,5.63443]
[1743700620569,6.01,1774.9,1774.8,6.42893]
[1743700621091,6.01,1774.9,1774.8,5.63443]
[1743700621396,6.39853,1774.9,1774.5,5.63533]
[1743700621559,6.39853,1774.9,1774.5,6.3933278]
[1743700621759,6.39853,1774.9,1774.6,5.63504]
[1743700621987,6.01,1775.0,1774.5,0.7579978]
[1743700622292,11.64392,1775.0,1774.6,5.63503]
[1743700622879,17.27797,1775.0,1774.6,5.63503]
[1743700623369,5.63415,1774.9,1774.6,5.63503]
[1743700623580,0.7713,1774.8,1774.5,11.27056]
[1743700623780,0.7713,1774.8,1774.6,5.63504]
[1743700624377,0.7713,1774.8,1774.5,5.6352]
[1743700625099,11.64489,1774.7,1774.3,11.27175]
[1743700625287,0.02914715,1774.6,1774.3,11.27175]
[1743700625488,6.01,1774.5,1774.2,5.63631]
[1743700625675,0.7713,1774.4,1774.2,5.63631]
[1743700625872,0.80044715,1774.4,1774.2,5.63631]
[1743700626070,11.64614,1774.3,1774.1,0.05]
[1743700626270,12.89079872,1774.3,1774.1,0.05]
[1743700626494,0.02914715,1774.2,1774.1,0.05]
[1743700626800,6.46413023,1774.2,1774.1,0.05]
[1743700626972,6.03914715,1774.2,1774.1,0.05]
[1743700629102,15.42608715,1774.2,1774.1,0.05]
[1743700629287,5.96,1774.0,1773.3,6.4335]
[1743700629488,5.96,1773.9,1773.8,5.63737]
[1743700629785,5.98914715,1773.9,1773.8,5.63737]
[1743700632402,0.02914715,1773.9,1773.8,5.63737]
[1743700632704,0.02914715,1773.9,1773.8,5.74369828]
[1743700632908,0.02914715,1773.9,1773.8,7.52892011]
[1743700633307,0.02914715,1773.9,1773.8,7.58528871]
[1743700633507,0.02914715,1773.9,1773.8,7.52892011]
[1743700633872,0.02914715,1773.9,1773.8,5.74369828]
[1743700634072,0.02914715,1773.9,1773.8,0.10632828]
[1743700634277,0.02914715,1773.9,1773.8,5.63761]
[1743700636777,0.02914715,1773.9,1773.8,6.39771]
[1743700637285,0.02914715,1773.9,1773.8,6.45408004]
[1743700637605,0.02914715,1773.9,1773.8,7.606898]
[1743700640175,0.02914715,1773.9,1773.8,6.39771]
[1743700640404,0.02914715,1773.9,1773.8,5.63761]
[1743700640904,0.02914715,1773.9,1773.6,5.63819]
[1743700641333,5.66644715,1773.9,1773.5,5.6385]
[1743700641481,0.762,1773.7,1773.4,5.6388]
[1743700641980,0.02914715,1773.6,1773.5,5.63856]
[1743700644482,0.02914715,1773.6,1773.5,5.7440755]
[1743700648120,0.02914715,1773.6,1773.5,7.65546105]
[1743700649319,0.02914715,1773.6,1773.5,6.5171755]
[1743700650303,7.15e-06,1773.6,1773.5,6.57354757]
[1743700650506,0.7552,1774.3,1774.1,5.63634]
[1743700650686,0.7552,1774.3,1774.2,5.74465976]
[1743700651091,0.7552,1774.3,1774.2,0.10831976]
[1743700652616,5.6364,1774.2,1773.9,5.63721]
[1743700652817,0.817,1774.1,1773.9,5.63721]
[1743700653002,6.45366,1774.1,1773.8,11.27504]
[1743700653208,0.817,1774.1,1773.9,5.63729]
[1743700653616,0.817,1774.1,1774.0,5.63697]
[1743700654230,10.03462956,1774.3,1774.0,5.63697]
[1743700654231,3.7908,1774.3,1774.0,6.764396]
[1743700654525,0.7908,1774.3,1774.2,5.63634]
[1743700654822,1.2404262,1774.5,1774.3,5.63575]
[1743700655011,0.8141,1774.5,1774.3,5.63575]
[1743700655212,0.8141,1774.5,1774.2,11.27257]
[1743700655614,5.21262956,1774.5,1774.2,5.63624]
[1743700655819,0.8141,1774.4,1774.1,11.27311]
[1743700656115,0.8141,1774.4,1774.1,11.27303]
[1743700656306,0.8141,1774.4,1774.2,5.63633]
[1743700656816,0.8141,1774.4,1774.1,11.27303]
[1743700656996,6.44989,1774.4,1774.1,5.63651]
[1743700657195,2.11616615,1774.4,1774.1,5.63651]
[1743700657396,0.8141,1774.4,1774.2,5.63633]
[1743700657897,0.8141,1774.4,1774.1,5.63651]
[1743700658098,6.44982,1774.4,1774.1,5.63651]
[1743700658297,0.8141,1774.4,1774.2,5.63627]
[1743700658634,6.4499,1774.4,1774.1,5.63651]
[1743700658841,1.86726715,1774.4,1774.0,5.63695]
[1743700659009,6.40123,1774.3,1774.0,5.63695]
[1743700659408,0.7918,1774.1,1773.9,5.63724]
[1743700659605,0.7918,1774.1,1773.8,5.63759]
[1743700659799,6.42848,1774.1,1773.8,5.6375]
[1743700660031,7.634972,1774.1,1773.8,5.6375]
[1743700660230,5.63745,1773.9,1773.6,5.63811]
[1743700660430,6.42942,1773.8,1773.5,5.63852]
[1743700662537,6.85650749,1773.8,1773.5,5.63852]
[1743700663850,6.85650749,1773.8,1773.5,5.63842]
[1743700664038,0.7918,1773.8,1773.6,5.6382]
[1743700664412,0.7918,1773.8,1773.6,11.27634]
[1743700664845,3.7812,1774.0,1773.7,5.63793]
[1743700665008,3.7812,1774.0,1773.8,5.63736]
[1743700665636,3.0,1774.0,1773.8,5.63736]
[1743700665807,3.0,1774.0,1773.9,5.63729]
[1743700666011,3.7938,1774.2,1773.9,5.63729]
[1743700666206,0.7938,1774.2,1774.1,5.63666]
[1743700666622,0.7938,1774.2,1774.0,5.63697]
[1743700666944,0.7938,1774.2,1774.0,11.27372]
[1743700667611,0.7938,1774.2,1774.1,5.63666]
[1743700668242,6.4139,1774.4,1774.2,5.63631]
[1743700668944,3.0,1774.5,1774.3,5.63602]
[1743700669348,8.63555,1774.5,1774.2,11.27253]
[1743700669543,3.0,1774.5,1774.2,11.27253]
[1743700669716,3.0,1774.5,1774.2,5.63622]
[1743700669917,5.63576,1774.4,1774.1,5.63663]
[1743700670231,3.0,1774.5,1774.2,5.63631]
[1743700670424,3.0,1774.5,1774.2,11.27253]
[1743700670624,3.0,1774.5,1774.3,5.63589]
[1743700670819,3.0,1774.5,1774.3,5.63588]
[1743700671547,3.0,1774.5,1774.3,11.27179]
[1743700671744,3.0,1774.5,1774.3,5.63588]
[1743700672126,9.98901181,1774.5,1774.2,5.63628]
[1743700672323,5.63571,1774.4,1774.1,5.63661]
[1743700672531,0.8128,1774.3,1774.0,5.63696]
[1743700672727,0.8128,1774.3,1774.1,5.63655]
[1743700672925,0.8128,1774.3,1774.1,5.63652]
[1743700673128,0.8128,1774.3,1774.0,11.27374]
[1743700673343,0.8128,1774.3,1773.7,0.8168]
[1743700673542,0.8128,1774.3,1774.0,11.27357]
[1743700673849,0.8128,1774.3,1774.0,5.63693]
[1743700674144,6.44883,1774.3,1774.0,5.63693]
[1743700674645,12.08502,1774.3,1774.0,5.63693]